[Event "Titled Tuesday Blitz June 07 Early 2022"]
[White "Sapunov, Evgeny"]
[Black "Xiong, Jeffery"]
[WhiteFideId "4126661"]
[BlackFideId "2047640"]
[WhiteElo "2470"]
[BlackElo "2714"]
[Result "1-0"]
[Round "03"]
[TimeControl "180+1"]
[Date "2022.06.07"]
[WhiteClock "0:00:34"]
[BlackClock "0:00:43"]

1. c4 {[%clk 0:03:00]}  e5 {[%clk 0:02:58]} 2. Nf3 {[%clk 0:03:00]}  e4 {[%clk 0:02:58]} 3. Nd4 {[%clk 0:03:00]}  Nc6 {[%clk 0:02:58]} 4. Nc2 {[%clk 0:03:00]}  d5 {[%clk 0:02:51]} 5. cxd5 {[%clk 0:03:00]}  Qxd5 {[%clk 0:02:52]} 6. Nc3 {[%clk 0:03:01]}  Qe5 {[%clk 0:02:53]} 7. d4 {[%clk 0:02:45]}  exd3 {[%clk 0:02:53]} 8. Qxd3 {[%clk 0:02:45]}  Bf5 {[%clk 0:02:53]} 9. e4 {[%clk 0:02:45]}  Nf6 {[%clk 0:02:42]} 10. f3 {[%clk 0:02:41]}  Bc5 {[%clk 0:02:36]} 11. Be3 {[%clk 0:02:28]}  Bg6 {[%clk 0:02:21]} 12. Qb5 {[%clk 0:02:13]}  Bxe3 {[%clk 0:02:04]} 13. Qxe5+ {[%clk 0:01:53]}  Nxe5 {[%clk 0:02:04]} 14. Nxe3 {[%clk 0:01:53]}  O-O-O {[%clk 0:02:05]} 15. Rd1 {[%clk 0:01:47]}  Rxd1+ {[%clk 0:02:01]} 16. Kxd1 {[%clk 0:01:46]}  Rd8+ {[%clk 0:02:01]} 17. Kc1 {[%clk 0:01:41]}  c6 {[%clk 0:01:50]} 18. Be2 {[%clk 0:01:38]}  Nd3+ {[%clk 0:01:37]} 19. Bxd3 {[%clk 0:01:38]}  Rxd3 {[%clk 0:01:38]} 20. Re1 {[%clk 0:01:38]}  Nd7 {[%clk 0:01:30]} 21. Kc2 {[%clk 0:01:34]}  Rd4 {[%clk 0:01:30]} 22. Ne2 {[%clk 0:01:24]}  Ra4 {[%clk 0:01:30]} 23. a3 {[%clk 0:01:23]}  Ne5 {[%clk 0:01:24]} 24. Rd1 {[%clk 0:01:19]}  Kc7 {[%clk 0:01:23]} 25. Nc3 {[%clk 0:01:15]}  Ra5 {[%clk 0:01:21]} 26. f4 {[%clk 0:01:08]}  Nd7 {[%clk 0:01:20]} 27. f5 {[%clk 0:01:08]}  Bh5 {[%clk 0:01:17]} 28. g4 {[%clk 0:01:08]}  Bxg4 {[%clk 0:01:17]} 29. Nxg4 {[%clk 0:01:08]}  h5 {[%clk 0:01:18]} 30. Nf2 {[%clk 0:01:03]}  g6 {[%clk 0:01:18]} 31. fxg6 {[%clk 0:00:58]}  fxg6 {[%clk 0:01:19]} 32. Rg1 {[%clk 0:00:58]}  g5 {[%clk 0:01:19]} 33. h3 {[%clk 0:00:56]}  Nf6 {[%clk 0:01:11]} 34. Kd3 {[%clk 0:00:53]}  Kd6 {[%clk 0:01:06]} 35. Ke3 {[%clk 0:00:53]}  Ke6 {[%clk 0:01:06]} 36. Nd3 {[%clk 0:00:53]}  g4 {[%clk 0:01:06]} 37. h4 {[%clk 0:00:53]}  Nd7 {[%clk 0:01:03]} 38. a4 {[%clk 0:00:47]}  c5 {[%clk 0:01:02]} 39. b3 {[%clk 0:00:45]}  c4 {[%clk 0:01:01]} 40. bxc4 {[%clk 0:00:44]}  Nb6 {[%clk 0:01:02]} 41. Nb2 {[%clk 0:00:44]}  Rc5 {[%clk 0:01:01]} 42. Kd4 {[%clk 0:00:44]}  Rc8 {[%clk 0:01:01]} 43. Rf1 {[%clk 0:00:44]}  Nd7 {[%clk 0:00:56]} 44. Nd3 {[%clk 0:00:41]}  Nb6 {[%clk 0:00:50]} 45. Nb2 {[%clk 0:00:40]}  Nd7 {[%clk 0:00:50]} 46. Nd5 {[%clk 0:00:40]}  g3 {[%clk 0:00:49]} 47. Nd3 {[%clk 0:00:40]}  Rg8 {[%clk 0:00:46]} 48. N3f4+ {[%clk 0:00:39]}  Kd6 {[%clk 0:00:47]} 49. Nxh5 {[%clk 0:00:37]}  g2 {[%clk 0:00:47]} 50. Rg1 {[%clk 0:00:36]}  Rg4 {[%clk 0:00:43]} 51. Nhf4 {[%clk 0:00:34]} 1-0


[Site "https://www.chess.com"]

[Event "Titled Tuesday Blitz June 07 Early 2022"]
[White "Shubin, Kirill"]
[Black "Alinasab, Mobina"]
[WhiteFideId "34119962"]
[BlackFideId "12528897"]
[WhiteElo "2474"]
[BlackElo "2031"]
[Result "1-0"]
[Round "03"]
[TimeControl "180+1"]
[Date "2022.06.07"]
[WhiteClock "0:00:45"]
[BlackClock "0:00:05"]

1. e4 {[%clk 0:03:00]}  c5 {[%clk 0:02:59]} 2. Nf3 {[%clk 0:02:59]}  e6 {[%clk 0:03:00]} 3. g3 {[%clk 0:02:59]}  d5 {[%clk 0:02:59]} 4. exd5 {[%clk 0:03:00]}  exd5 {[%clk 0:02:59]} 5. d4 {[%clk 0:03:01]}  Nc6 {[%clk 0:02:59]} 6. Bg2 {[%clk 0:03:01]}  Nf6 {[%clk 0:02:59]} 7. O-O {[%clk 0:03:00]}  Be7 {[%clk 0:03:00]} 8. dxc5 {[%clk 0:02:58]}  Bxc5 {[%clk 0:03:01]} 9. a3 {[%clk 0:02:58]}  O-O {[%clk 0:03:00]} 10. b4 {[%clk 0:02:58]}  Bb6 {[%clk 0:02:59]} 11. Bb2 {[%clk 0:02:53]}  Ne4 {[%clk 0:02:57]} 12. Nbd2 {[%clk 0:02:43]}  Bg4 {[%clk 0:02:37]} 13. c4 {[%clk 0:02:32]}  Nxd2 {[%clk 0:02:23]} 14. Qxd2 {[%clk 0:02:33]}  Bxf3 {[%clk 0:01:58]} 15. Bxf3 {[%clk 0:02:32]}  dxc4 {[%clk 0:01:58]} 16. Qf4 {[%clk 0:02:32]}  Nd4 {[%clk 0:01:37]} 17. Rad1 {[%clk 0:02:27]}  Nxf3+ {[%clk 0:01:35]} 18. Qxf3 {[%clk 0:02:28]}  Qc7 {[%clk 0:01:33]} 19. Qg4 {[%clk 0:02:17]}  f5 {[%clk 0:01:08]} 20. Qf3 {[%clk 0:02:11]}  Rf7 {[%clk 0:01:03]} 21. Rd5 {[%clk 0:02:08]}  Qc6 {[%clk 0:00:49]} 22. Rfd1 {[%clk 0:02:04]}  Re8 {[%clk 0:00:47]} 23. Bc3 {[%clk 0:01:54]}  a6 {[%clk 0:00:42]} 24. Kg2 {[%clk 0:01:45]}  h6 {[%clk 0:00:20]} 25. h4 {[%clk 0:01:43]}  Ba7 {[%clk 0:00:19]} 26. h5 {[%clk 0:01:18]}  b5 {[%clk 0:00:19]} 27. Rd6 {[%clk 0:01:14]}  Qxf3+ {[%clk 0:00:16]} 28. Kxf3 {[%clk 0:01:15]}  f4 {[%clk 0:00:11]} 29. g4 {[%clk 0:01:12]}  Bb8 {[%clk 0:00:06]} 30. Rxa6 {[%clk 0:01:11]}  Be5 {[%clk 0:00:06]} 31. Re1 {[%clk 0:01:03]}  Rfe7 {[%clk 0:00:05]} 32. Rxe5 {[%clk 0:00:58]}  Rxe5 {[%clk 0:00:06]} 33. Bxe5 {[%clk 0:00:59]}  Rxe5 {[%clk 0:00:07]} 34. Rb6 {[%clk 0:00:58]}  Rd5 {[%clk 0:00:07]} 35. Kxf4 {[%clk 0:00:57]}  Kf7 {[%clk 0:00:05]} 36. Ke4 {[%clk 0:00:55]}  Rd3 {[%clk 0:00:05]} 37. Rxb5 {[%clk 0:00:55]}  Rxa3 {[%clk 0:00:05]} 38. Rc5 {[%clk 0:00:55]}  c3 {[%clk 0:00:04]} 39. Kd3 {[%clk 0:00:52]}  c2+ {[%clk 0:00:03]} 40. Kxc2 {[%clk 0:00:52]}  Ra2+ {[%clk 0:00:03]} 41. Kb3 {[%clk 0:00:45]}  Rxf2 {[%clk 0:00:04]} 42. Rf5+ {[%clk 0:00:44]}  Rxf5 {[%clk 0:00:04]} 43. gxf5 {[%clk 0:00:45]}  Ke7 {[%clk 0:00:02]} 44. Kc4 {[%clk 0:00:44]}  Kd6 {[%clk 0:00:03]} 45. b5 {[%clk 0:00:45]}  Kc7 {[%clk 0:00:03]} 46. Kc5 {[%clk 0:00:45]}  Kb7 {[%clk 0:00:03]} 47. b6 {[%clk 0:00:44]}  Kb8 {[%clk 0:00:04]} 48. Kc6 {[%clk 0:00:44]}  Kc8 {[%clk 0:00:04]} 49. b7+ {[%clk 0:00:45]}  Kb8 {[%clk 0:00:05]} 50. Kb6 {[%clk 0:00:45]} 1-0


[Site "https://www.chess.com"]

[Event "Titled Tuesday Blitz June 07 Early 2022"]
[White "Shuvalov, Evgenij"]
[Black "Makarian, Rudik"]
[WhiteFideId "4187237"]
[BlackFideId "44105681"]
[WhiteElo "2023"]
[BlackElo "2398"]
[Result "1-0"]
[Round "03"]
[TimeControl "180+1"]
[Date "2022.06.08"]
[WhiteClock "0:00:05"]
[BlackClock "0:00:04"]

1. Nf3 {[%clk 0:02:54]}  Nf6 {[%clk 0:02:59]} 2. c4 {[%clk 0:02:54]}  e6 {[%clk 0:02:57]} 3. g3 {[%clk 0:02:54]}  d5 {[%clk 0:02:56]} 4. Bg2 {[%clk 0:02:54]}  dxc4 {[%clk 0:02:55]} 5. Qc2 {[%clk 0:02:53]}  a6 {[%clk 0:02:50]} 6. Qxc4 {[%clk 0:02:53]}  b5 {[%clk 0:02:49]} 7. Qc2 {[%clk 0:02:53]}  Bb7 {[%clk 0:02:50]} 8. O-O {[%clk 0:02:52]}  Nbd7 {[%clk 0:02:49]} 9. d3 {[%clk 0:02:52]}  Be7 {[%clk 0:02:48]} 10. a4 {[%clk 0:02:51]}  O-O {[%clk 0:02:45]} 11. Nbd2 {[%clk 0:02:45]}  c5 {[%clk 0:02:44]} 12. Nb3 {[%clk 0:02:44]}  Qb6 {[%clk 0:02:36]} 13. Bd2 {[%clk 0:02:43]}  Rac8 {[%clk 0:02:35]} 14. Na5 {[%clk 0:02:34]}  Bd5 {[%clk 0:02:31]} 15. axb5 {[%clk 0:02:32]}  axb5 {[%clk 0:02:31]} 16. e4 {[%clk 0:02:30]}  Ba8 {[%clk 0:02:31]} 17. h3 {[%clk 0:02:22]}  Qb8 {[%clk 0:02:17]} 18. b3 {[%clk 0:02:19]}  Bd6 {[%clk 0:02:12]} 19. Bc3 {[%clk 0:02:14]}  Ne5 {[%clk 0:02:12]} 20. Nd2 {[%clk 0:02:05]}  Ng6 {[%clk 0:01:28]} 21. Bxf6 {[%clk 0:01:47]}  gxf6 {[%clk 0:01:29]} 22. f4 {[%clk 0:01:39]}  Rfd8 {[%clk 0:01:25]} 23. h4 {[%clk 0:01:31]}  Nf8 {[%clk 0:01:12]} 24. Bf3 {[%clk 0:01:28]}  Rd7 {[%clk 0:00:58]} 25. Be2 {[%clk 0:01:27]}  Bc7 {[%clk 0:00:54]} 26. Kh2 {[%clk 0:01:16]}  Bb6 {[%clk 0:00:40]} 27. Qb2 {[%clk 0:01:13]}  c4 {[%clk 0:00:35]} 28. Qxf6 {[%clk 0:01:04]}  Bd8 {[%clk 0:00:28]} 29. Qh6 {[%clk 0:00:57]}  cxd3 {[%clk 0:00:27]} 30. Bd1 {[%clk 0:00:52]}  Qb6 {[%clk 0:00:20]} 31. Ra2 {[%clk 0:00:24]}  e5 {[%clk 0:00:18]} 32. Qh5 {[%clk 0:00:20]}  Ra7 {[%clk 0:00:16]} 33. b4 {[%clk 0:00:20]}  Qd4 {[%clk 0:00:11]} 34. Bb3 {[%clk 0:00:20]}  Qxb4 {[%clk 0:00:10]} 35. fxe5 {[%clk 0:00:18]}  Ne6 {[%clk 0:00:07]} 36. Rxf7 {[%clk 0:00:15]}  Rxf7 {[%clk 0:00:06]} 37. Bxe6 {[%clk 0:00:15]}  Rc7 {[%clk 0:00:06]} 38. Nab3 {[%clk 0:00:14]}  Bc6 {[%clk 0:00:04]} 39. Ra6 {[%clk 0:00:12]}  Qe7 {[%clk 0:00:04]} 40. Qg4+ {[%clk 0:00:10]}  Kf8 {[%clk 0:00:03]} 41. Nd4 {[%clk 0:00:09]}  Rf2+ {[%clk 0:00:03]} 42. Kh3 {[%clk 0:00:09]}  Rxd2 {[%clk 0:00:04]} 43. Nf5 {[%clk 0:00:08]}  Qxe6 {[%clk 0:00:02]} 44. Qf4 {[%clk 0:00:08]}  Kg8 {[%clk 0:00:02]} 45. Qxd2 {[%clk 0:00:08]}  Qf7 {[%clk 0:00:01]} 46. Nh6+ {[%clk 0:00:07]}  Kg7 {[%clk 0:00:02]} 47. Nxf7 {[%clk 0:00:08]}  Kxf7 {[%clk 0:00:03]} 48. Qf4+ {[%clk 0:00:08]}  Kg7 {[%clk 0:00:03]} 49. e6 {[%clk 0:00:05]}  Rc8 {[%clk 0:00:01]} 50. Qe5+ {[%clk 0:00:05]}  Bf6 {[%clk 0:00:02]} 51. Qd6 {[%clk 0:00:06]}  Bxe4 {[%clk 0:00:02]} 52. Qd7+ {[%clk 0:00:05]}  Kg6 {[%clk 0:00:02]} 53. Qxc8 {[%clk 0:00:05]}  d2 {[%clk 0:00:02]} 54. Rd6 {[%clk 0:00:05]}  Bf5+ {[%clk 0:00:02]} 55. g4 {[%clk 0:00:05]}  Be4 {[%clk 0:00:02]} 56. h5+ {[%clk 0:00:06]}  Kg5 {[%clk 0:00:02]} 57. Rxd2 {[%clk 0:00:05]}  Be5 {[%clk 0:00:03]} 58. Qg8+ {[%clk 0:00:05]}  Kf4 {[%clk 0:00:03]} 59. Qf7+ {[%clk 0:00:05]}  Ke3 {[%clk 0:00:04]} 60. Qf2# {[%clk 0:00:05]} 1-0


[Site "https://www.chess.com"]

[Event "Titled Tuesday Blitz June 07 Early 2022"]
[White "Srinath, Rao S.V."]
[Black "Stribuk, Artiom"]
[WhiteFideId "5028876"]
[BlackFideId "13515659"]
[WhiteElo "2181"]
[BlackElo "2259"]
[Result "1/2-1/2"]
[Round "03"]
[TimeControl "180+1"]
[Date "2022.06.08"]
[WhiteClock "0:00:12"]
[BlackClock "0:00:04"]

1. c4 {[%clk 0:03:00]}  g6 {[%clk 0:02:58]} 2. Nc3 {[%clk 0:03:00]}  c5 {[%clk 0:02:56]} 3. g3 {[%clk 0:02:56]}  Bg7 {[%clk 0:02:55]} 4. Bg2 {[%clk 0:02:57]}  Nc6 {[%clk 0:02:55]} 5. e3 {[%clk 0:02:57]}  e5 {[%clk 0:02:51]} 6. Nge2 {[%clk 0:02:58]}  d6 {[%clk 0:02:50]} 7. a3 {[%clk 0:02:53]}  h5 {[%clk 0:02:46]} 8. h3 {[%clk 0:02:51]}  Nge7 {[%clk 0:02:43]} 9. Rb1 {[%clk 0:02:49]}  Be6 {[%clk 0:02:09]} 10. Nd5 {[%clk 0:02:38]}  a5 {[%clk 0:01:54]} 11. Nec3 {[%clk 0:02:35]}  O-O {[%clk 0:01:53]} 12. d3 {[%clk 0:02:23]}  f5 {[%clk 0:01:31]} 13. Bd2 {[%clk 0:02:12]}  Kh7 {[%clk 0:01:17]} 14. Qc2 {[%clk 0:01:51]}  Bg8 {[%clk 0:01:01]} 15. g4 {[%clk 0:01:45]}  h4 {[%clk 0:00:55]} 16. gxf5 {[%clk 0:01:29]}  gxf5 {[%clk 0:00:55]} 17. Rg1 {[%clk 0:01:17]}  Ng6 {[%clk 0:00:54]} 18. Bf3 {[%clk 0:01:12]}  Bf7 {[%clk 0:00:43]} 19. b4 {[%clk 0:00:57]}  axb4 {[%clk 0:00:43]} 20. axb4 {[%clk 0:00:57]}  cxb4 {[%clk 0:00:37]} 21. Nxb4 {[%clk 0:00:56]}  Nxb4 {[%clk 0:00:37]} 22. Rxb4 {[%clk 0:00:57]}  Ra1+ {[%clk 0:00:37]} 23. Nd1 {[%clk 0:00:52]}  d5 {[%clk 0:00:25]} 24. cxd5 {[%clk 0:00:45]}  Bxd5 {[%clk 0:00:26]} 25. Bh5 {[%clk 0:00:45]}  Rf6 {[%clk 0:00:11]} 26. Bc3 {[%clk 0:00:44]}  Raa6 {[%clk 0:00:07]} 27. d4 {[%clk 0:00:32]}  exd4 {[%clk 0:00:06]} 28. Bxd4 {[%clk 0:00:30]}  Rfc6 {[%clk 0:00:06]} 29. Qxf5 {[%clk 0:00:30]}  Bxd4 {[%clk 0:00:03]} 30. Rxd4 {[%clk 0:00:29]}  Qa5+ {[%clk 0:00:03]} 31. Rd2 {[%clk 0:00:24]}  Bg8 {[%clk 0:00:04]} 32. Bxg6+ {[%clk 0:00:19]}  Rxg6 {[%clk 0:00:04]} 33. Qd7+ {[%clk 0:00:19]}  Kh8 {[%clk 0:00:04]} 34. Rxg6 {[%clk 0:00:18]}  Rxg6 {[%clk 0:00:05]} 35. Qd4+ {[%clk 0:00:17]}  Rg7 {[%clk 0:00:05]} 36. Qxh4+ {[%clk 0:00:18]}  Rh7 {[%clk 0:00:06]} 37. Qf6+ {[%clk 0:00:18]}  Rg7 {[%clk 0:00:07]} 38. Nc3 {[%clk 0:00:17]}  Qa1+ {[%clk 0:00:06]} 39. Rd1 {[%clk 0:00:17]}  Qa5 {[%clk 0:00:06]} 40. Rd7 {[%clk 0:00:17]}  Qa1+ {[%clk 0:00:06]} 41. Ke2 {[%clk 0:00:17]}  Bc4+ {[%clk 0:00:06]} 42. Kf3 {[%clk 0:00:17]}  Qh1+ {[%clk 0:00:06]} 43. Kf4 {[%clk 0:00:17]}  Qh2+ {[%clk 0:00:07]} 44. Ke4 {[%clk 0:00:17]}  Qg2+ {[%clk 0:00:03]} 45. f3 {[%clk 0:00:16]}  Qc2+ {[%clk 0:00:03]} 46. Kf4 {[%clk 0:00:15]}  Qh2+ {[%clk 0:00:03]} 47. Ke4 {[%clk 0:00:15]}  Qc2+ {[%clk 0:00:04]} 48. Kf4 {[%clk 0:00:15]}  Qh2+ {[%clk 0:00:04]} 49. Ke4 {[%clk 0:00:12]}  Qc2+ {[%clk 0:00:04]} 1/2-1/2


[Site "https://www.chess.com"]

[Event "Titled Tuesday Blitz June 07 Early 2022"]
[White "Svane, Rasmus"]
[Black "Guzman, Christopher"]
[WhiteFideId "4657101"]
[BlackFideId "6405096"]
[WhiteElo "2674"]
[BlackElo "2244"]
[Result "1-0"]
[Round "03"]
[TimeControl "180+1"]
[Date "2022.06.07"]
[WhiteClock "0:00:22"]
[BlackClock "0:00:28"]

1. Nf3 {[%clk 0:03:00]}  Nf6 {[%clk 0:02:59]} 2. g3 {[%clk 0:03:00]}  b6 {[%clk 0:03:00]} 3. Bg2 {[%clk 0:03:00]}  Bb7 {[%clk 0:03:00]} 4. O-O {[%clk 0:03:01]}  e6 {[%clk 0:03:01]} 5. c4 {[%clk 0:03:00]}  Be7 {[%clk 0:03:01]} 6. d4 {[%clk 0:02:59]}  O-O {[%clk 0:03:01]} 7. Re1 {[%clk 0:03:00]}  d5 {[%clk 0:03:01]} 8. cxd5 {[%clk 0:03:01]}  exd5 {[%clk 0:03:02]} 9. Nc3 {[%clk 0:03:00]}  Nc6 {[%clk 0:03:02]} 10. Bf4 {[%clk 0:02:57]}  Ne4 {[%clk 0:03:02]} 11. Rc1 {[%clk 0:02:32]}  Nxc3 {[%clk 0:03:02]} 12. bxc3 {[%clk 0:02:33]}  Na5 {[%clk 0:03:00]} 13. Nd2 {[%clk 0:02:27]}  Ba3 {[%clk 0:02:58]} 14. Rb1 {[%clk 0:02:20]}  Qd7 {[%clk 0:02:56]} 15. e4 {[%clk 0:02:06]}  dxe4 {[%clk 0:02:57]} 16. Nxe4 {[%clk 0:02:06]}  Rfe8 {[%clk 0:02:48]} 17. Qh5 {[%clk 0:01:46]}  f6 {[%clk 0:01:58]} 18. h4 {[%clk 0:01:06]}  Rad8 {[%clk 0:01:45]} 19. Kh2 {[%clk 0:00:58]}  Qf7 {[%clk 0:01:17]} 20. Qxf7+ {[%clk 0:00:58]}  Kxf7 {[%clk 0:01:18]} 21. Bxc7 {[%clk 0:00:58]}  Rc8 {[%clk 0:01:17]} 22. Bf4 {[%clk 0:00:45]}  Bxe4 {[%clk 0:01:15]} 23. Bxe4 {[%clk 0:00:40]}  Rxc3 {[%clk 0:01:15]} 24. Bxh7 {[%clk 0:00:31]}  Rxe1 {[%clk 0:01:10]} 25. Rxe1 {[%clk 0:00:32]}  g6 {[%clk 0:01:10]} 26. h5 {[%clk 0:00:32]}  gxh5 {[%clk 0:01:09]} 27. Be4 {[%clk 0:00:31]}  Nc4 {[%clk 0:00:57]} 28. Bd5+ {[%clk 0:00:31]}  Kg6 {[%clk 0:00:57]} 29. Re8 {[%clk 0:00:30]}  Nd6 {[%clk 0:00:52]} 30. Rg8+ {[%clk 0:00:26]}  Kh7 {[%clk 0:00:51]} 31. Rd8 {[%clk 0:00:25]}  Nb5 {[%clk 0:00:46]} 32. Be4+ {[%clk 0:00:24]}  Kg7 {[%clk 0:00:46]} 33. Rd7+ {[%clk 0:00:23]}  Kf8 {[%clk 0:00:45]} 34. Bg6 {[%clk 0:00:23]}  h4 {[%clk 0:00:28]} 35. Bh6+ {[%clk 0:00:22]}  Kg8 {[%clk 0:00:28]} 36. Rd8+ {[%clk 0:00:22]} 1-0


[Site "https://www.chess.com"]

[Event "Titled Tuesday Blitz June 07 Early 2022"]
[White "Terry, Renato"]
[Black "Piesik, Piotr"]
[WhiteFideId "3803457"]
[BlackFideId "1136194"]
[WhiteElo "2577"]
[BlackElo "2247"]
[Result "1-0"]
[Round "03"]
[TimeControl "180+1"]
[Date "2022.06.07"]
[WhiteClock "0:00:31"]
[BlackClock "0:00:27"]

1. d4 {[%clk 0:03:00]}  Nf6 {[%clk 0:02:58]} 2. Nf3 {[%clk 0:03:00]}  d5 {[%clk 0:02:57]} 3. c4 {[%clk 0:03:00]}  c6 {[%clk 0:02:58]} 4. Nc3 {[%clk 0:03:00]}  dxc4 {[%clk 0:02:57]} 5. a4 {[%clk 0:03:00]}  Bf5 {[%clk 0:02:57]} 6. Ne5 {[%clk 0:03:01]}  Nbd7 {[%clk 0:02:56]} 7. Nxc4 {[%clk 0:03:01]}  Nb6 {[%clk 0:02:56]} 8. Ne5 {[%clk 0:03:02]}  a5 {[%clk 0:02:55]} 9. e3 {[%clk 0:03:02]}  e6 {[%clk 0:02:53]} 10. g4 {[%clk 0:03:02]}  Bg6 {[%clk 0:02:53]} 11. h4 {[%clk 0:03:02]}  Bd6 {[%clk 0:02:30]} 12. h5 {[%clk 0:03:00]}  Bxe5 {[%clk 0:02:30]} 13. hxg6 {[%clk 0:02:59]}  Bd6 {[%clk 0:02:22]} 14. gxf7+ {[%clk 0:02:59]}  Kxf7 {[%clk 0:02:23]} 15. g5 {[%clk 0:02:50]}  Nfd5 {[%clk 0:02:22]} 16. Qf3+ {[%clk 0:02:28]}  Ke7 {[%clk 0:02:20]} 17. Bd2 {[%clk 0:02:12]}  Bb4 {[%clk 0:02:16]} 18. Qe4 {[%clk 0:02:02]}  g6 {[%clk 0:01:59]} 19. Be2 {[%clk 0:02:02]}  Qd6 {[%clk 0:01:55]} 20. Qc2 {[%clk 0:01:54]}  Raf8 {[%clk 0:01:43]} 21. Rh3 {[%clk 0:01:34]}  e5 {[%clk 0:01:41]} 22. Qe4 {[%clk 0:01:32]}  Nd7 {[%clk 0:01:33]} 23. f4 {[%clk 0:01:31]}  Nxf4 {[%clk 0:01:18]} 24. exf4 {[%clk 0:01:28]}  Qxd4 {[%clk 0:01:18]} 25. Qh1 {[%clk 0:01:00]}  exf4 {[%clk 0:01:11]} 26. O-O-O {[%clk 0:01:00]}  Nc5 {[%clk 0:01:00]} 27. Rxh7+ {[%clk 0:00:53]}  Rxh7 {[%clk 0:01:00]} 28. Qxh7+ {[%clk 0:00:54]}  Rf7 {[%clk 0:01:01]} 29. Qxg6 {[%clk 0:00:54]}  Bxc3 {[%clk 0:00:48]} 30. Bxc3 {[%clk 0:00:51]}  Qe3+ {[%clk 0:00:48]} 31. Kb1 {[%clk 0:00:46]}  Ne4 {[%clk 0:00:42]} 32. Bc4 {[%clk 0:00:39]}  Nxc3+ {[%clk 0:00:33]} 33. bxc3 {[%clk 0:00:39]}  Qb6+ {[%clk 0:00:27]} 34. Ka1 {[%clk 0:00:31]} 1-0


[Site "https://www.chess.com"]

[Event "Titled Tuesday Blitz June 07 Early 2022"]
[White "Thavandiran, Shiyam"]
[Black "Girinath, P.D.S."]
[WhiteFideId "2605058"]
[BlackFideId "5000572"]
[WhiteElo "2357"]
[BlackElo "2369"]
[Result "1-0"]
[Round "03"]
[TimeControl "180+1"]
[Date "2022.06.08"]
[WhiteClock "0:00:05"]
[BlackClock "0:00:03"]

1. e4 {[%clk 0:03:00]}  e6 {[%clk 0:02:59]} 2. d4 {[%clk 0:03:00]}  d5 {[%clk 0:03:00]} 3. e5 {[%clk 0:02:53]}  c5 {[%clk 0:03:00]} 4. c3 {[%clk 0:02:54]}  Nc6 {[%clk 0:03:01]} 5. Nf3 {[%clk 0:02:54]}  Nh6 {[%clk 0:03:01]} 6. Bxh6 {[%clk 0:02:22]}  gxh6 {[%clk 0:03:02]} 7. Be2 {[%clk 0:02:22]}  Bg7 {[%clk 0:03:01]} 8. O-O {[%clk 0:02:22]}  O-O {[%clk 0:02:55]} 9. a3 {[%clk 0:02:21]}  cxd4 {[%clk 0:02:52]} 10. cxd4 {[%clk 0:02:22]}  f6 {[%clk 0:02:53]} 11. exf6 {[%clk 0:02:22]}  Qxf6 {[%clk 0:02:54]} 12. Nc3 {[%clk 0:02:13]}  Nxd4 {[%clk 0:02:52]} 13. Nxd4 {[%clk 0:02:13]}  Qxd4 {[%clk 0:02:53]} 14. Bg4 {[%clk 0:02:05]}  Qxd1 {[%clk 0:02:25]} 15. Raxd1 {[%clk 0:02:06]}  d4 {[%clk 0:02:25]} 16. Nb5 {[%clk 0:01:53]}  e5 {[%clk 0:02:23]} 17. Bf3 {[%clk 0:01:54]}  Bd7 {[%clk 0:02:18]} 18. Bd5+ {[%clk 0:01:52]}  Kh8 {[%clk 0:02:16]} 19. Nd6 {[%clk 0:01:53]}  Bc6 {[%clk 0:02:11]} 20. Nf7+ {[%clk 0:01:51]}  Kg8 {[%clk 0:02:01]} 21. Nxh6+ {[%clk 0:01:51]}  Kh8 {[%clk 0:02:02]} 22. Nf7+ {[%clk 0:01:52]}  Kg8 {[%clk 0:02:01]} 23. Bxc6 {[%clk 0:01:14]}  bxc6 {[%clk 0:01:36]} 24. Nd6 {[%clk 0:01:14]}  Rfb8 {[%clk 0:01:32]} 25. Rd2 {[%clk 0:01:08]}  Rb3 {[%clk 0:01:25]} 26. Re1 {[%clk 0:00:54]}  Rab8 {[%clk 0:01:22]} 27. Nc4 {[%clk 0:00:54]}  Kf7 {[%clk 0:01:14]} 28. Kf1 {[%clk 0:00:52]}  Ke6 {[%clk 0:01:04]} 29. Nxe5 {[%clk 0:00:50]}  Bxe5 {[%clk 0:01:01]} 30. f4 {[%clk 0:00:50]}  Re3 {[%clk 0:00:45]} 31. fxe5 {[%clk 0:00:46]}  Rxe1+ {[%clk 0:00:45]} 32. Kxe1 {[%clk 0:00:47]}  Kxe5 {[%clk 0:00:45]} 33. Re2+ {[%clk 0:00:41]}  Kd5 {[%clk 0:00:44]} 34. b4 {[%clk 0:00:41]}  a5 {[%clk 0:00:44]} 35. bxa5 {[%clk 0:00:33]}  Ra8 {[%clk 0:00:43]} 36. Re7 {[%clk 0:00:20]}  c5 {[%clk 0:00:36]} 37. Rxh7 {[%clk 0:00:17]}  Rxa5 {[%clk 0:00:36]} 38. Rh3 {[%clk 0:00:16]}  Kc4 {[%clk 0:00:33]} 39. Kd2 {[%clk 0:00:14]}  Rb5 {[%clk 0:00:30]} 40. Kc2 {[%clk 0:00:14]}  Rb7 {[%clk 0:00:30]} 41. Rf3 {[%clk 0:00:13]}  Re7 {[%clk 0:00:29]} 42. Rf2 {[%clk 0:00:13]}  Re3 {[%clk 0:00:26]} 43. Kb2 {[%clk 0:00:10]}  Kb5 {[%clk 0:00:25]} 44. g4 {[%clk 0:00:09]}  c4 {[%clk 0:00:24]} 45. g5 {[%clk 0:00:09]}  d3 {[%clk 0:00:20]} 46. g6 {[%clk 0:00:06]}  Re2+ {[%clk 0:00:18]} 47. Rxe2 {[%clk 0:00:07]}  dxe2 {[%clk 0:00:19]} 48. g7 {[%clk 0:00:07]}  e1=Q {[%clk 0:00:19]} 49. g8=Q {[%clk 0:00:08]}  Qd2+ {[%clk 0:00:17]} 50. Kb1 {[%clk 0:00:08]}  Qd1+ {[%clk 0:00:15]} 51. Kb2 {[%clk 0:00:09]}  Qb3+ {[%clk 0:00:15]} 52. Kc1 {[%clk 0:00:09]}  Qxa3+ {[%clk 0:00:15]} 53. Kd1 {[%clk 0:00:09]}  Qf3+ {[%clk 0:00:14]} 54. Kd2 {[%clk 0:00:08]}  Qf2+ {[%clk 0:00:13]} 55. Kc3 {[%clk 0:00:07]}  Qe3+ {[%clk 0:00:13]} 56. Kc2 {[%clk 0:00:07]}  Qe2+ {[%clk 0:00:11]} 57. Kc3 {[%clk 0:00:07]}  Qd3+ {[%clk 0:00:11]} 58. Kb2 {[%clk 0:00:07]}  c3+ {[%clk 0:00:09]} 59. Ka3 {[%clk 0:00:04]}  c2+ {[%clk 0:00:03]} 60. Kb2 {[%clk 0:00:04]}  Qd2 {[%clk 0:00:03]} 61. Qb3+ {[%clk 0:00:04]}  Ka6 {[%clk 0:00:02]} 62. Qc4+ {[%clk 0:00:04]}  Ka5 {[%clk 0:00:02]} 63. Qc5+ {[%clk 0:00:04]}  Ka6 {[%clk 0:00:01]} 64. Qc6+ {[%clk 0:00:03]}  Ka5 {[%clk 0:00:01]} 65. Qc7+ {[%clk 0:00:03]}  Ka6 {[%clk 0:00:01]} 66. Qxc2 {[%clk 0:00:02]}  Qb4+ {[%clk 0:00:01]} 67. Kc1 {[%clk 0:00:02]}  Qe1+ {[%clk 0:00:01]} 68. Kb2 {[%clk 0:00:02]}  Qb4+ {[%clk 0:00:01]} 69. Ka2 {[%clk 0:00:01]}  Qa5+ {[%clk 0:00:01]} 70. Kb3 {[%clk 0:00:02]}  Qb5+ {[%clk 0:00:01]} 71. Kc3 {[%clk 0:00:03]}  Qe5+ {[%clk 0:00:01]} 72. Kd3 {[%clk 0:00:03]}  Qf5+ {[%clk 0:00:01]} 73. Kd2 {[%clk 0:00:03]}  Qf2+ {[%clk 0:00:01]} 74. Kc3 {[%clk 0:00:03]}  Qc5+ {[%clk 0:00:01]} 75. Kb3 {[%clk 0:00:03]}  Qxc2+ {[%clk 0:00:01]} 76. Kxc2 {[%clk 0:00:04]}  Kb5 {[%clk 0:00:02]} 77. h4 {[%clk 0:00:04]}  Kc5 {[%clk 0:00:02]} 78. h5 {[%clk 0:00:05]}  Kd5 {[%clk 0:00:03]} 79. h6 {[%clk 0:00:05]} 1-0


[Site "https://www.chess.com"]